Cogmind - Beta 11 X8 @@@ ROGUE MODE // 2021.11.21 @ 20:47:11 Player: youngster Result: Destroyed by as-58983 with Assembled Rifle Performance ------------- Evolutions (0) 0 Regions Visited (2) 400 Robots Destroyed (26) 130 Value Destroyed (651) 651 Prototype IDs (2) 40 Alien Tech Used (0) 0 Bonus (0) 0 TOTAL SCORE: 1221 Bonus ------- None Cogmind --------- Core Integrity 0/250 Matter 280/300 Energy 280/280 System Corruption 0% Temperature Cool (8) Movement Treading (240) Ox1 Location -10/Mines Parts ------- > --- POWER (1) -------- Heavy Ion Engine > --- PROPULSION (2) --- Light Treads Light Treads > --- UTILITY (2) ------ High-capacity Storage Unit Signal Interpreter > --- WEAPON (2) ------- Improved Light Cannon Grenade Launcher > --- INVENTORY (20) --- Light Ion Engine Light Treads Light Treads Light Treads Wheel Huge Storage Unit High-capacity Matter Pod (200) Sensor Array Improved Terrain Scanner Seismic Analyzer Power Shielding Hacking Suite Thief Drone Bay Medium Laser Heavy Assault Rifle Bore Cannon Datajack Proton Bomb Trap Proton Bomb Trap Peak State ------------ > --- POWER ------------ Heavy Ion Engine > --- PROPULSION ------- Light Treads Wheel > --- UTILITY ---------- Huge Storage Unit Improved Terrain Scanner > --- WEAPON ----------- Improved Light Cannon Improved Light Cannon > --- INVENTORY -------- Heavy Ion Engine Light Treads Light Treads Light Treads Light Treads High-capacity Storage Unit High-capacity Matter Pod Sensor Array Seismic Analyzer Power Shielding Hacking Suite EM Pulse Gun EM Pulse Gun Medium Laser Heavy Assault Rifle [Rating: 15] Favorites ----------- Power Heavy Ion Engine Engine Heavy Ion Engine Propulsion Light Treads Treads Light Treads Wheel Wheel Utility High-capacity Storage Unit Device Improved Terrain Scanner Storage High-capacity Storage Unit Processor Signal Interpreter Weapon Improved Light Cannon Energy Gun Medium Laser Ballistic Gun Light Assault Rifle Ballistic Cannon Improved Light Cannon Launcher Grenade Launcher Build | -11 -10 -10 ------- Run | Scr Mat Min Slots Evolved . | . . . Power . | . . . Propulsion . | . . . Utility . | . . . Weapon . | . . . Parts Attached 30 | 6 20 4 Power 6 | 1 4 1 Engine 6 | 1 4 1 Core . | . . . Reactor . | . . . Propulsion 8 | 2 5 1 Treads 6 | 2 3 1 Leg . | . . . Wheel 2 | . 2 . Hover . | . . . Flight . | . . . Utility 7 | 1 6 . Device 1 | . 1 . Storage 5 | 1 4 . Processor 1 | . 1 . Hackware . | . . . Protection . | . . . Artifact . | . . . Weapon 9 | 2 5 2 Energy Gun 4 | 1 2 1 Energy Cannon . | . . . Ballistic Gun 1 | 1 . . Ballistic Cannon 3 | . 3 . Launcher 1 | . . 1 Special Weapon . | . . . Impact Weapon . | . . . Slashing Weapon . | . . . Piercing Weapon . | . . . Special Melee Weapon . | . . . Unidentified Prototypes 1 | . 1 . Parts Lost 5 | . 2 3 Power 2 | . 1 1 Propulsion . | . . . Utility . | . . . Weapon 3 | . 1 2 Highest Loss Streak 3 | . 1 3 Average Slot Usage (%) 97 | . 96 99 Engine 13 | . 13 13 Treads 22 | . 20 25 Wheel 5 | . 7 2 Device 5 | . 10 . Storage 14 | . 14 14 Processor 6 | . . 14 Energy Gun 7 | . 12 . Ballistic Gun 1 | . 3 . Ballistic Cannon 14 | . 12 16 Launcher 4 | . . 10 Naked Turns . | . . . Heaviest Build 57 | 13 57 56 Greatest Support 40 | 40 40 40 Greatest Overweight (x) 5 | . 5 5 Average Overweight (x) 2 | . 2 2 Largest Inventory Capacity 25 | 8 25 20 Average Capacity 15 | 7 13 20 Most Carried 19 | 5 16 19 Average Carried 12 | 2 10 15 Final Capacity 20 | 8 20 20 Final Carried 19 | 5 16 19 Class Distribution -------------------- 100% | Mutant Dominant Class ---------------- Mutant | -10/Materials Mutant | -10/Mines Resources | -11 -10 -10 ----------- Run | Scr Mat Min Matter Collected 1138 | 266 615 257 Remotely . | . . . Salvage Created 900 | 106 720 74 Parts 51 | 7 40 4 Haulers Intercepted 2 | . 2 . Recyclers Shooed . | . . . Parts Field Recycled . | . . . Retrieved Matter . | . . . Parts Self-Destructed . | . . . Prevented . | . . . Kills | -11 -10 -10 ------- Run | Scr Mat Min Combat Hostiles Destroyed 26 | . 13 13 Guns 9 | . 9 . Cannons 12 | . 4 8 AOE 5 | . . 5 Classes Destroyed 8 | 2 5 1 Worker 1 | . 1 . Builder 1 | . 1 . Tunneler 2 | 2 . . Hauler 2 | . 2 . Recycler 3 | 1 2 . Operator 1 | . 1 . Grunt 15 | . 13 2 Assembled 10 | . . 10 Best Kill Streak 5 | 3 3 5 Combat Bots Only 5 | . 2 5 Max Kills in Single Turn 2 | 1 2 1 Gunslinging . | . . . Exploded 1 | . . 1 Melee . | . . . Uniques/NPCs Destroyed 1 | . . 1 YI-UF0 (-10/Mines) Combat | -11 -10 -10 -------- Run | Scr Mat Min Damage Taken 1456 | . 581 875 Core 255 | . 81 174 Absorbed by Shields . | . . . Core Remaining (%) 100 | 100 . . Volleys Fired 98 | 6 55 37 Largest 2 | 2 2 2 Hottest 90 | 60 90 79 Shots Fired 168 | 12 107 49 Gun 98 | 12 82 4 Cannon 58 | . 25 33 Launcher 12 | . . 12 Special . | . . . Kinetic 92 | 6 53 33 Thermal 36 | . 36 . Explosive 12 | . . 12 Electromagnetic 28 | 6 18 4 Robot Hit Streak 14 | 3 14 10 Robot Miss Streak 4 | 1 3 4 Penetration Max . | . . . Secondary Targets 1 | . 1 . Max Gunslinging Chain 1 | . 1 . Shots Hit Robots 112 | 7 73 32 Core Hits 65 | 4 35 26 Critical Kills . | . . . Critical Parts Destroyed . | . . . Critical Strikes 7 | . 7 . Burn 5 | . 5 . Blast 1 | . 1 . Corrupt 1 | . 1 . Melee Attacks . | . . . Impact . | . . . Slashing . | . . . Piercing . | . . . Sneak Attacks . | . . . Combat Hostiles . | . . . Follow-up Attacks . | . . . Damage Inflicted 2003 | 74 1006 923 Guns 782 | 74 664 44 Cannons 850 | . 339 511 Explosions 368 | . . 368 Melee . | . . . Ramming 3 | . 3 . Kinetic 1030 | 36 483 511 Thermal 372 | . 372 . Explosive 368 | . . 368 Electromagnetic 230 | 38 148 44 Impact . | . . . Slashing . | . . . Piercing . | . . . Highest Corruption . | . . . Average Corruption . | . . . Corruption Purged . | . . . Overload Shots . | . . . Overflow Damage 36 | . . 36 Projectiles 26 | . . 26 Explosions 10 | . . 10 Melee . | . . . Knockbacks 11 | . 4 7 Impact . | . . . Kinetic 11 | . 4 7 Secondary . | . . . Self-Inflicted Damage 37 | . 1 36 Shots 2 | . . 2 Rammed 3 | . 3 . Targets Rammed 4 | . 4 . Kicked . | . . . Crushed 1 | . 1 . Highest Temperature 440 | 20 440 81 Average Temperature 59 | 13 71 22 Received Heat Transfer 408 | . 321 87 Effects 1 | . 1 . Short Circuit 1 | . 1 . Siege Activations . | . . . Robots Corrupted . | . . . Combat Hostiles . | . . . Parts Fried . | . . . Impact Corruptions . | . . . Robots Melted . | . . . Combat Hostiles . | . . . Parts Melted 2 | . 2 . Heat Transferred 1480 | . 1480 . Parts Sabotaged . | . . . Parts Stolen . | . . . Parts Stripped . | . . . Power Chain Reactions . | . . . Missiles Intercepted . | . . . Alert | -11 -10 -10 ------- Run | Scr Mat Min Peak Influence 299 | 15 299 81 Initial 31 | . 9 31 Average 79 | 5 124 27 Maximum Alert Level 1 | . 1 . Low Security (%) 94 | 100 90 100 Level 1 5 | . 9 . Level 2 . | . . . Level 3 . | . . . Level 4 . | . . . Level 5 . | . . . High Security . | . . . Max Security . | . . . Squads Dispatched 5 | . 5 . Investigation 4 | . 4 . Extermination . | . . . Reinforcement 1 | . 1 . Assault . | . . . Garrison . | . . . Intercept . | . . . Construction Impeded . | . . . Haulers Reinforced . | . . . Active Scanning Responses . | . . . Cargo Convoy Interrupts . | . . . Stealth | -11 -10 -10 --------- Run | Scr Mat Min Distress Signals 2 | . 2 . Communications Jammed . | . . . Distress Signals . | . . . Times Spotted 51 | . 29 22 Peak Tracking Total 5 | . 5 4 Tactical Retreats 3 | . . 3 Traps | -11 -10 -10 ------- Run | Scr Mat Min Traps Triggered 3 | . 3 . Indirectly . | . . . Trap Hack Attempts . | . . . Triggered . | . . . Disarmed . | . . . Reprogrammed . | . . . Reused . | . . . Traps Extracted . | . . . Installed 2 | . . 2 Triggered . | . . . Machines | -11 -10 -10 ---------- Run | Scr Mat Min Machines Disabled 3 | . 3 . Max in Single Turn 1 | . 1 . Machines Sabotaged . | . . . Garrisons Compromised . | . . . Overloaded Fab Kills . | . . . Hacking | -11 -10 -10 --------- Run | Scr Mat Min Machines Accessed 8 | . 7 1 Terminals 5 | . 5 . Fabricators . | . . . Repair Stations . | . . . Recycling Units 2 | . 2 . Scanalyzers . | . . . Garrison Access . | . . . Total Hacks 17 | . 16 1 Successful 8 | . 7 1 Failed 9 | . 9 . Catastrophic 1 | . 1 . Database Lockouts . | . . . Manual 10 | . 10 . Terminals 12 | . 12 . Fabricators . | . . . Repair Stations . | . . . Recycling Units 4 | . 4 . Scanalyzers . | . . . Garrison Access . | . . . Terminal Hacks 7 | . 6 1 Record 1 | . 1 . Part Schematic 1 | . 1 . Prototype ID Bank 1 | . 1 . Open Door 1 | . . 1 Alert Level 1 | . 1 . Recall Investigation 1 | . 1 . Hauler Manifests 1 | . 1 . Fabricator Hacks . | . . . Repair Station Hacks . | . . . Recycling Unit Hacks . | . . . Scanalyzer . | . . . Garrison Access Hacks . | . . . Unauthorized Hacks 1 | . 1 . Terminals . | . . . Fabricators . | . . . Repair Stations . | . . . Recycling Units 1 | . 1 . Tunnel 1 | . 1 . Scanalyzers . | . . . Garrison Access . | . . . Data Cores Recovered . | . . . Used . | . . . Hacking Detections 7 | . 7 . Full Trace Events 2 | . 2 . Feedback Events . | . . . Feedback Blocked . | . . . Robot Schematics Acquired . | . . . Robots Built . | . . . Authchips . | . . . Time . | . . . Total Robot Build Rating . | . . . Part Schematics Acquired 1 | . 1 . Parts Built . | . . . Authchips . | . . . Time . | . . . Total Part Build Rating . | . . . Parts Repaired . | . . . Time . | . . . Parts Recycled . | . . . Recycled Matter . | . . . Retrieved Matter . | . . . Retrieved Components . | . . . Parts Scanalyzed . | . . . Part Schematics Acquired . | . . . Parts Damaged . | . . . Bothacking | -11 -10 -10 ------------ Run | Scr Mat Min Used RIF Installer . | . . . Robots Hacked . | . . . Non-combat . | . . . Combat . | . . . Robot Hacks Applied . | . . . Relay Couplers Released . | . . . Robots Rewired . | . . . Allies Hacked . | . . . Hacks Repelled . | . . . Allies | -11 -10 -10 -------- Run | Scr Mat Min Total Allies . | . . . Largest Group . | . . . Highest-Rated Group . | . . . Highest-Rated Ally . | . . . Total Orders . | . . . Ally Attacks . | . . . Total Damage . | . . . Kills . | . . . Allies Corrupted . | . . . Allies Melted . | . . . Intel | -11 -10 -10 ------- Run | Scr Mat Min Robot Analysis Total . | . . . Derelict Logs Recovered 1 | . . 1 Drone Launches . | . . . Drone Recoveries . | . . . Exploration | -11 -10 -10 ------------- Run | Scr Mat Min Turns Passed 2445 | 95 1347 1003 Spaces Moved 1171 | 42 718 411 Core 2 | 2 . . Treads 633 | 40 296 297 Legs . | . . . Wheels 536 | . 422 114 Hover . | . . . Flight . | . . . Fastest Speed 50 | 50 110 155 Average Speed 174 | 154 151 216 Slowest Speed 240 | 160 240 240 Overloaded Moves . | . . . Propulsion Burnouts . | . . . Robots Hopped . | . . . Cave-ins Triggered . | . . . Exploration Rate (%) 60 | 3 96 82 Regions Visited 2 Branch Regions 1 Pre-discovered Areas 1 | . 1 . Known Exits Taken 1 | . 1 . Unknown Exits Taken 1 | 1 . . Scrap Searched 1 | . . 1 Spaces Dug 26 | . . 26 Terrain Destroyed 85 | . 4 81 Melee . | . . . Projectile 6 | . 4 2 AOE 79 | . . 79 Terrain Rammed . | . . . Walls Destroyed . | . . . Machines Disabled . | . . . Actions | -11 -10 -10 --------- Run | Scr Mat Min Total 1411 | 58 877 476 Wait 65 | . 49 16 Move 1169 | 41 717 411 Hop . | . . . Pick Up 30 | 5 19 6 Fast Attach 12 | 6 6 . Attach 6 | . 3 3 Detach 1 | . 1 . Swap 12 | . 11 1 Drop 12 | . 12 . Fire 98 | 6 55 37 Melee . | . . . Ram 2 | . 2 . Kick . | . . . Crush 2 | . 2 . Escape Stasis . | . . . Rewire . | . . . Trap 2 | . . 2 Miscellaneous . | . . . Route ------- -11/Scrapyard -10/Materials (discovered 5 exits: *Mat x3 / *Min x2) -10/Mines History --------- Turn | Location | Event 16 | -11/Scrapyard | Discovered new exit (range 16) 96 | -11/Scrapyard | Entered Materials 302 | -10/Materials | Build established: Mutant 309 | -10/Materials | Discovered new exit (range 16) 557 | -10/Materials | Discovered new exit (range 13) 957 | -10/Materials | Discovered new exit (range 8) 1207 | -10/Materials | Discovered new exit (range 16) 1350 | -10/Materials | Discovered new exit (range 8) 1367 | -10/Materials | Identified exit to Materials 1442 | -10/Materials | Identified exit to Mines 1443 | -10/Materials | Entered Mines 1596 | -10/Mines | YI-UF0 nonchalantly dropped a Grenade Launcher on the ground 1610 | -10/Mines | Assembled infested the area 1615 | -10/Mines | Assisted by a Guerilla fighting off Assembled 1653 | -10/Mines | Core integrity fell below 50% 1669 | -10/Mines | Destroyed YI-UF0 1690 | -10/Mines | Core integrity fell below 20% 1697 | -10/Mines | Lost 3 parts (1p2w) 2148 | -10/Mines | Found the Drone Emporium 2154 | -10/Mines | Learned location of 1 exit from Materials 2162 | -10/Mines | Found Prototype Device 2401 | -10/Mines | Found a hidden stash of uninstalled traps 2446 | -10/Mines | Destroyed by as-58983 with Assembled Rifle Last Messages --------------- opened my Drone Emporium yet but am totally ready to tell them where they can shove that C&D." 02150_ 52-JGY(g): "I'm a fan of the free market. Free drones for all! No strings attached!" 02154_ Acquired derelict log, extracted data. Data stored: Materials exits (x1). 02162_ Acquired Prototype Device. 02265_ as-21327 destroyed. 02267_ Acquired 15 matter. 02269_ The unstable cave ceiling collapses. 02315_ Acquired 3 matter. 02358_ Acquired 7 matter. 02370_ Acquired 9 matter. 02401_ A stash of uninstalled traps is collected here! 02406_ Installed Proton Bomb Trap. 02412_ Acquired Proton Bomb Trap. 02418_ Installed Proton Bomb Trap. 02441_ U-05 Engineer destroyed. 02443_ as-21440 destroyed. 02445_ as-86278 destroyed. Map ----- +----------------------------------------------------+ | ?????????????????????????????##################### | | ????????????????????????????# | | ????????????????????????????? | | ????????????????????????????????################ | | ???????????????????????????????????????????????# | | ??????????????????????????????????????????????## | | ?????????????????????????????????????????????## | | ?????????????????????????????????????????????# | | ?????????????????????????????????????????????# | | ????????????????????????????????????????????## | | ???????????????????????????????????????????## """ | | ??????????????????????????????????????????## """ | | ???????????????????????????????????###?#### """ | | ??????????????????????????????????## ## | | ????????????????????????????###???# | | ???????????????????????????## #??## ### | | ???????????????????????????# ##?## ## ##?? | | ???????????????????????????# ##?## #### ##??? | | ????????????????????????????# #??####??# #???? | | ?????????????????????????????# #?????#### #???? | | ?????????????????????????????# #?????# ##### | | ????????????????####??????????# ####### ## | | ????????????????# ###??????# |=*=%!= !## | | ?????????????#%%# ###??## =####%# ###### | | ??????????a%*=%=! % =a!=!=#### ###*#%== #??# | | ??????????=%=!*==!=%= =%@%!! ###??# | | ?????????????????## #%= !%= ### "###????### | | ??????????????????#???##= = #?# ##???????# | | ???????????????????#### !!= ##?# #????????# | | ?????????????????### !%=! *=%###### ####?????## | | ????????????????## !%= *##??# # #??????# | | ????????????????# ! ^ ##???# #??????# | | ???????????##???# ### ^##????# ####???? | | ??????????? #??####??## =%%#????## #???? | | ???????????# #?????????# !% #????# # ## #???? | | ???????????# #?????????# ###?# ## #???? | | ???????????# #?????????## |!% ## % ## #???? | | ?????????### #??????????# ##%= # " ##??? | | ## #???### ##?????????## ###! ##?? | | # ## #??????????####?##% * #?? | | # ##??????????????## # #?? | | # #??????????????# % ## ##?? | | ?# ##### #?????????????#### #####??? | | ??????????## #?????????????# ######?? | | ???????????### #?????????????# ### ## ##? | | ?????????????# #?????????????# # #? | | ?????????????# #?????????????## ###### ## | | ?????????????# #??????????????# # # | | ????????###### #????????????########### | | ????????# #???????????? #???????# # | +----------------------------------------------------+ Best States ------------- Heat Dissipation 25 Energy Generation 14 Energy Capacity 280 Matter Stores 300 Matter Capacity 300 Sight Range 16 Terrain Scan Range 16 Terrain Scan Density 10 Evasion (%) 40 Recoil Reduction 2 Item Schematics ----------------- Hcp. Storage Unit | -10/Materials | Hacked Robot Schematics ------------------ None Fabricated ------------ Nothing Alien Tech Used ----------------- None Achievements -------------- None Challenges ------------ None Game ------ Seed TacticalRelayNanoactuators Manual? 0 Play Time 00:25:13 Cumulative 131.8 hours Start 2021.11.21 @ 20:22:52 End 2021.11.21 @ 20:47:11 Sessions 1 Manual Loads 0 Difficulty Rogue Special Mode None Game No. 82 Rogue 82 Adventurer 0 Explorer 0 Win Type - Total 3 Types 2/0/0/1/0/0/0/0/0 Lore% 68 Gallery% 76 Achievement% 55 Wizard Run 0 Options --------- ASCII 0 Keyboard 1 Movement Vi Keybinds 0 Fullscreen 2 Font 18/Cog Map View 76x50 Tactical HUD 1 Map Filters NONE Filters NONE Steam 1 RUN: 0582c02c-1393-4570-b1c4-0e4386efd080